[Event "Early-Titled-Tuesday-Blitz-December-26-2023"]
[Site "Chess.com"]
[Date "2023.12.26"]
[Round "4"]
[White "AljoschaFeuerstack"]
[Black "ShahMatKanal"]
[Result "0-1"]
[WhiteElo "2686"]
[BlackElo "2535"]
[TimeControl "180+1"]
[EndTime "8:37:56 PST"]
[Termination "ShahMatKanal won by resignation"]

1. e4 {[%clk 0:03:00.9]} 1... c6 {[%clk 0:02:56.5]} 2. d3 {[%clk 0:02:59.3]}
2... g6 {[%clk 0:02:28.4]} 3. g3 {[%clk 0:02:55.4]} 3... Bg7 {[%clk 0:02:28]} 4.
Bg2 {[%clk 0:02:55.9]} 4... d6 {[%clk 0:02:27.1]} 5. Nf3 {[%clk 0:02:55.3]} 5...
Nf6 {[%clk 0:02:26.6]} 6. O-O {[%clk 0:02:55.5]} 6... O-O {[%clk 0:02:26.5]} 7.
Re1 {[%clk 0:02:53.6]} 7... Qc7 {[%clk 0:02:24.7]} 8. a4 {[%clk 0:02:37]} 8...
a5 {[%clk 0:02:22.8]} 9. Nc3 {[%clk 0:02:34.4]} 9... Na6 {[%clk 0:02:17.2]} 10.
d4 {[%clk 0:02:29.8]} 10... Nd7 {[%clk 0:02:10.1]} 11. Bg5 {[%clk 0:02:24.5]}
11... Re8 {[%clk 0:02:08]} 12. Qd2 {[%clk 0:02:21.3]} 12... Nb4 {[%clk
0:02:02.6]} 13. Rad1 {[%clk 0:02:15.7]} 13... Nb6 {[%clk 0:01:56.6]} 14. b3
{[%clk 0:02:10.6]} 14... Bg4 {[%clk 0:01:52.9]} 15. h3 {[%clk 0:02:08.6]} 15...
Bxf3 {[%clk 0:01:50.9]} 16. Bxf3 {[%clk 0:02:09.5]} 16... Bf6 {[%clk 0:01:41.4]}
17. Bh6 {[%clk 0:01:49.9]} 17... Rad8 {[%clk 0:01:31.5]} 18. h4 {[%clk
0:01:46.6]} 18... e5 {[%clk 0:01:29.5]} 19. d5 {[%clk 0:01:13.6]} 19... Bg7
{[%clk 0:01:21.4]} 20. Re2 {[%clk 0:01:01.3]} 20... Nxc2 {[%clk 0:01:09.8]} 21.
Bxg7 {[%clk 0:00:58.6]} 21... Nd4 {[%clk 0:01:09.1]} 22. Qh6 {[%clk 0:00:55.7]}
22... Nxf3+ {[%clk 0:00:50.4]} 23. Kg2 {[%clk 0:00:53.6]} 23... f5 {[%clk
0:00:50.8]} 24. Bf6 {[%clk 0:00:50.4]} 24... Nd4 {[%clk 0:00:42.5]} 25. Bxd8
{[%clk 0:00:43.9]} 25... Qxd8 {[%clk 0:00:37.4]} 26. Rb2 {[%clk 0:00:32.1]}
26... Qf6 {[%clk 0:00:33.2]} 27. dxc6 {[%clk 0:00:17.2]} 27... bxc6 {[%clk
0:00:32.3]} 28. Qd2 {[%clk 0:00:16.7]} 28... fxe4 {[%clk 0:00:31.6]} 29. Qe2
{[%clk 0:00:11.4]} 29... d5 {[%clk 0:00:30]} 30. b4 {[%clk 0:00:11]} 30... Nxe2
{[%clk 0:00:30]} 0-1

[Event "Early-Titled-Tuesday-Blitz-December-26-2023"]
[Site "Chess.com"]
[Date "2023.12.26"]
[Round "4"]
[White "slidingknight2775"]
[Black "FunnyDuck66"]
[Result "1-0"]
[WhiteElo "2679"]
[BlackElo "2477"]
[TimeControl "180+1"]
[EndTime "8:38:00 PST"]
[Termination "slidingknight2775 won by resignation"]

1. Nf3 {[%clk 0:03:00.9]} 1... Nf6 {[%clk 0:02:57.5]} 2. g3 {[%clk 0:03:00.8]}
2... d5 {[%clk 0:02:56.3]} 3. Bg2 {[%clk 0:03:01.2]} 3... c6 {[%clk 0:02:56]} 4.
c4 {[%clk 0:03:01]} 4... e6 {[%clk 0:02:44.2]} 5. O-O {[%clk 0:02:59.9]} 5...
Be7 {[%clk 0:02:43.5]} 6. b3 {[%clk 0:02:58.6]} 6... O-O {[%clk 0:02:43.6]} 7.
Bb2 {[%clk 0:02:59.2]} 7... Nbd7 {[%clk 0:02:42.8]} 8. d4 {[%clk 0:02:59.2]}
8... b5 {[%clk 0:02:35.7]} 9. Qc2 {[%clk 0:02:56.8]} 9... Bb7 {[%clk 0:02:34.8]}
10. Nbd2 {[%clk 0:02:54.7]} 10... a5 {[%clk 0:02:34.4]} 11. a4 {[%clk
0:02:39.7]} 11... bxc4 {[%clk 0:02:26.8]} 12. bxc4 {[%clk 0:02:38.4]} 12... Ba6
{[%clk 0:02:19.5]} 13. Rac1 {[%clk 0:02:28.7]} 13... Bb4 {[%clk 0:02:10.4]} 14.
Rfd1 {[%clk 0:02:21.8]} 14... Rb8 {[%clk 0:02:06.6]} 15. e4 {[%clk 0:02:15.4]}
15... Bxd2 {[%clk 0:01:44.5]} 16. Nxd2 {[%clk 0:02:13.3]} 16... dxc4 {[%clk
0:01:44.4]} 17. Ba3 {[%clk 0:02:09.7]} 17... Re8 {[%clk 0:01:35.5]} 18. Nxc4
{[%clk 0:02:09.9]} 18... Bxc4 {[%clk 0:01:25.8]} 19. Qxc4 {[%clk 0:02:10.8]}
19... Nb6 {[%clk 0:01:20]} 20. Qxc6 {[%clk 0:02:04.4]} 20... Rc8 {[%clk
0:01:19.7]} 21. Qb5 {[%clk 0:02:04]} 21... Rxc1 {[%clk 0:01:18.3]} 22. Bxc1
{[%clk 0:02:04.9]} 22... Qc7 {[%clk 0:01:07.9]} 23. Bf4 {[%clk 0:02:02.7]} 23...
Qa7 {[%clk 0:00:50.6]} 24. Be3 {[%clk 0:01:46]} 24... Rb8 {[%clk 0:00:39]} 25.
d5 {[%clk 0:01:33.6]} 25... exd5 {[%clk 0:00:36.6]} 26. Rb1 {[%clk 0:01:31.9]}
26... Nfd7 {[%clk 0:00:34.7]} 27. Bh3 {[%clk 0:01:26.1]} 27... Ne5 {[%clk
0:00:12.4]} 28. Bxb6 {[%clk 0:01:21.3]} 28... Qe7 {[%clk 0:00:11.1]} 29. Bg2
{[%clk 0:01:11.4]} 29... d4 {[%clk 0:00:11]} 30. Qf1 {[%clk 0:01:01.9]} 30... d3
{[%clk 0:00:10.6]} 31. Bd4 {[%clk 0:00:54.7]} 31... Rxb1 {[%clk 0:00:05.1]} 32.
Qxb1 {[%clk 0:00:55.6]} 32... Qb4 {[%clk 0:00:03.4]} 33. Qxb4 {[%clk 0:00:41.1]}
33... axb4 {[%clk 0:00:04.3]} 34. Bxe5 {[%clk 0:00:41.1]} 34... d2 {[%clk
0:00:05.2]} 35. Bf3 {[%clk 0:00:41.4]} 35... b3 {[%clk 0:00:06.1]} 36. Bd1
{[%clk 0:00:41.3]} 36... b2 {[%clk 0:00:07]} 37. Bxb2 {[%clk 0:00:41.8]} 1-0

[Event "Early-Titled-Tuesday-Blitz-December-26-2023"]
[Site "Chess.com"]
[Date "2023.12.26"]
[Round "4"]
[White "PavelChernomordik"]
[Black "GMJustin"]
[Result "1-0"]
[WhiteElo "2427"]
[BlackElo "2238"]
[TimeControl "180+1"]
[EndTime "8:38:03 PST"]
[Termination "PavelChernomordik won on time"]

1. e4 {[%clk 0:03:00.9]} 1... c5 {[%clk 0:02:57.9]} 2. Nc3 {[%clk 0:02:59.2]}
2... b6 {[%clk 0:02:57.4]} 3. f4 {[%clk 0:02:58]} 3... Bb7 {[%clk 0:02:55.8]} 4.
Nf3 {[%clk 0:02:58.1]} 4... e6 {[%clk 0:02:42.8]} 5. g3 {[%clk 0:02:54.6]} 5...
Nf6 {[%clk 0:02:33.4]} 6. d3 {[%clk 0:02:52.3]} 6... d5 {[%clk 0:02:31.2]} 7. e5
{[%clk 0:02:51.7]} 7... d4 {[%clk 0:02:28.3]} 8. Nb5 {[%clk 0:02:22]} 8... Nd5
{[%clk 0:02:22.6]} 9. Bg2 {[%clk 0:02:20.7]} 9... a6 {[%clk 0:02:14.2]} 10. Na3
{[%clk 0:02:20.1]} 10... b5 {[%clk 0:02:13.5]} 11. O-O {[%clk 0:02:18.8]} 11...
Be7 {[%clk 0:02:10.3]} 12. Bd2 {[%clk 0:02:17.7]} 12... O-O {[%clk 0:02:09.7]}
13. c4 {[%clk 0:02:17]} 13... dxc3 {[%clk 0:02:08.5]} 14. bxc3 {[%clk
0:02:16.7]} 14... c4 {[%clk 0:01:59.2]} 15. Nc2 {[%clk 0:02:02.8]} 15... cxd3
{[%clk 0:01:54.7]} 16. Ncd4 {[%clk 0:02:02.3]} 16... Nd7 {[%clk 0:01:48]} 17. f5
{[%clk 0:01:53.8]} 17... exf5 {[%clk 0:01:41.7]} 18. Nxf5 {[%clk 0:01:52.5]}
18... Rc8 {[%clk 0:01:17.2]} 19. Qe1 {[%clk 0:01:33.1]} 19... N7b6 {[%clk
0:01:02.3]} 20. Qe4 {[%clk 0:01:19.6]} 20... Bc5+ {[%clk 0:00:09.2]} 21. Kh1
{[%clk 0:01:17.1]} 21... Ne3 {[%clk 0:00:08.8]} 22. Qxb7 {[%clk 0:00:59.9]}
22... Nxf5 {[%clk 0:00:08.9]} 23. Rae1 {[%clk 0:00:49.5]} 23... Qd5 {[%clk
0:00:04]} 24. Qxa6 {[%clk 0:00:38.9]} 24... Ra8 {[%clk 0:00:03.8]} 25. Qxb5
{[%clk 0:00:38.5]} 25... Qc4 {[%clk 0:00:03]} 26. Qc6 {[%clk 0:00:34.1]} 26...
Rxa2 {[%clk 0:00:02.8]} 27. Re4 {[%clk 0:00:30.6]} 27... Qb3 {[%clk 0:00:02.1]}
28. Qxc5 {[%clk 0:00:29.9]} 1-0

[Event "Early-Titled-Tuesday-Blitz-December-26-2023"]
[Site "Chess.com"]
[Date "2023.12.26"]
[Round "4"]
[White "Aslanov_Umid"]
[Black "Alex_Sahakyan2006"]
[Result "1-0"]
[WhiteElo "2568"]
[BlackElo "2704"]
[TimeControl "180+1"]
[EndTime "8:38:11 PST"]
[Termination "Aslanov_Umid won by resignation"]

1. e4 {[%clk 0:03:00.9]} 1... g6 {[%clk 0:02:51.4]} 2. d4 {[%clk 0:03:00.8]}
2... Bg7 {[%clk 0:02:50.3]} 3. Nc3 {[%clk 0:03:01.4]} 3... a6 {[%clk 0:02:50.1]}
4. f4 {[%clk 0:03:00.9]} 4... b5 {[%clk 0:02:50]} 5. Nf3 {[%clk 0:03:00.8]} 5...
Bb7 {[%clk 0:02:50.4]} 6. Bd3 {[%clk 0:03:00.9]} 6... d6 {[%clk 0:02:50.6]} 7.
e5 {[%clk 0:02:52.1]} 7... e6 {[%clk 0:02:50.1]} 8. Be3 {[%clk 0:02:50.4]} 8...
Nd7 {[%clk 0:02:45.7]} 9. Qd2 {[%clk 0:02:39.2]} 9... Ne7 {[%clk 0:02:44.6]} 10.
h4 {[%clk 0:02:37]} 10... Bxf3 {[%clk 0:02:36.6]} 11. gxf3 {[%clk 0:02:37.9]}
11... h5 {[%clk 0:02:36.9]} 12. Ne4 {[%clk 0:02:37.3]} 12... d5 {[%clk
0:02:34.2]} 13. Ng5 {[%clk 0:02:36.6]} 13... Bh6 {[%clk 0:02:29.9]} 14. Kf2
{[%clk 0:02:32.3]} 14... Bxg5 {[%clk 0:02:10.7]} 15. fxg5 {[%clk 0:02:24.7]}
15... Qb8 {[%clk 0:02:00.6]} 16. b3 {[%clk 0:02:21.4]} 16... O-O {[%clk
0:01:56.7]} 17. a4 {[%clk 0:02:21.2]} 17... c5 {[%clk 0:01:34.2]} 18. c3 {[%clk
0:02:17.3]} 18... c4 {[%clk 0:01:32.4]} 19. bxc4 {[%clk 0:02:17.8]} 19... bxc4
{[%clk 0:01:33.3]} 20. Rhb1 {[%clk 0:02:14.2]} 20... Qc7 {[%clk 0:01:30.2]} 21.
Bc2 {[%clk 0:02:14.8]} 21... Rfb8 {[%clk 0:01:27.8]} 22. Rxb8+ {[%clk
0:02:12.1]} 22... Rxb8 {[%clk 0:01:28.7]} 23. Rb1 {[%clk 0:02:12.7]} 23... Rxb1
{[%clk 0:01:09.6]} 24. Bxb1 {[%clk 0:02:13.5]} 24... Qb6 {[%clk 0:01:09.6]} 25.
Qa2 {[%clk 0:02:10.2]} 25... Nb8 {[%clk 0:00:57.7]} 26. Bc1 {[%clk 0:02:04.4]}
26... Nbc6 {[%clk 0:00:51.4]} 27. Qb2 {[%clk 0:01:53.5]} 27... Qxb2+ {[%clk
0:00:37.9]} 28. Bxb2 {[%clk 0:01:52.4]} 28... Nf5 {[%clk 0:00:24.3]} 29. Bxf5
{[%clk 0:01:52.1]} 29... gxf5 {[%clk 0:00:25.2]} 30. Ke3 {[%clk 0:01:43.8]}
30... Ne7 {[%clk 0:00:25.3]} 31. Kf2 {[%clk 0:01:42]} 31... Ng6 {[%clk
0:00:25.2]} 32. Kg3 {[%clk 0:01:42.6]} 32... Kf8 {[%clk 0:00:25.7]} 33. Ba3+
{[%clk 0:01:16.7]} 33... Ke8 {[%clk 0:00:26.1]} 34. Bb4 {[%clk 0:01:17.4]} 34...
Kd7 {[%clk 0:00:26.7]} 35. Ba5 {[%clk 0:01:18.2]} 35... Kc6 {[%clk 0:00:26.9]}
36. Bd8 {[%clk 0:01:18.8]} 36... Kd7 {[%clk 0:00:20]} 37. Bb6 {[%clk 0:01:18.6]}
37... Kc8 {[%clk 0:00:18.7]} 38. Ba5 {[%clk 0:01:17]} 38... Kb7 {[%clk
0:00:18.3]} 39. Bd8 {[%clk 0:01:17.3]} 39... Kc6 {[%clk 0:00:17.9]} 40. Ba5
{[%clk 0:01:17.7]} 40... Kb7 {[%clk 0:00:17.4]} 41. Bd8 {[%clk 0:01:18.1]} 41...
f4+ {[%clk 0:00:14.4]} 42. Kh3 {[%clk 0:01:18.3]} 42... Nxe5 {[%clk 0:00:15.1]}
43. dxe5 {[%clk 0:01:16.1]} 43... d4 {[%clk 0:00:15.8]} 44. cxd4 {[%clk
0:01:16.3]} 44... c3 {[%clk 0:00:15.4]} 45. Ba5 {[%clk 0:01:17]} 45... c2 {[%clk
0:00:16]} 46. Bd2 {[%clk 0:01:17.8]} 46... Kc6 {[%clk 0:00:15.7]} 47. Bxf4
{[%clk 0:01:12.2]} 47... Kd5 {[%clk 0:00:16.2]} 48. Be3 {[%clk 0:01:13]} 48...
Kc4 {[%clk 0:00:16.8]} 49. f4 {[%clk 0:01:06.1]} 49... Kd3 {[%clk 0:00:17.2]}
50. Bc1 {[%clk 0:01:06.8]} 50... Kxd4 {[%clk 0:00:16.1]} 51. Kg3 {[%clk
0:01:04.2]} 51... Ke4 {[%clk 0:00:14.2]} 52. Kf2 {[%clk 0:01:04.9]} 52... Kd3
{[%clk 0:00:13.7]} 53. f5 {[%clk 0:01:04.3]} 1-0

[Event "Early-Titled-Tuesday-Blitz-December-26-2023"]
[Site "Chess.com"]
[Date "2023.12.26"]
[Round "4"]
[White "SHIVACalypso"]
[Black "Mikhail_Golubev"]
[Result "0-1"]
[WhiteElo "2388"]
[BlackElo "2617"]
[TimeControl "180+1"]
[EndTime "8:38:12 PST"]
[Termination "Mikhail_Golubev won by resignation"]

1. Nf3 {[%clk 0:03:00.9]} 1... d6 {[%clk 0:02:58.9]} 2. c4 {[%clk 0:02:59.1]}
2... g6 {[%clk 0:02:57.6]} 3. g3 {[%clk 0:02:59.2]} 3... Bg7 {[%clk 0:02:58]} 4.
Bg2 {[%clk 0:02:59]} 4... e5 {[%clk 0:02:58]} 5. Nc3 {[%clk 0:02:58.4]} 5... Nc6
{[%clk 0:02:57.2]} 6. d3 {[%clk 0:02:58.4]} 6... f5 {[%clk 0:02:56.2]} 7. O-O
{[%clk 0:02:58.9]} 7... h6 {[%clk 0:02:56.3]} 8. Rb1 {[%clk 0:02:58.8]} 8... a5
{[%clk 0:02:56]} 9. a3 {[%clk 0:02:58.5]} 9... g5 {[%clk 0:02:56.1]} 10. Qc2
{[%clk 0:02:57.2]} 10... Nf6 {[%clk 0:02:49.6]} 11. b4 {[%clk 0:02:57.1]} 11...
axb4 {[%clk 0:02:49.2]} 12. axb4 {[%clk 0:02:58]} 12... O-O {[%clk 0:02:49.3]}
13. b5 {[%clk 0:02:58.2]} 13... Ne7 {[%clk 0:02:48.5]} 14. Bb2 {[%clk
0:02:57.1]} 14... f4 {[%clk 0:02:40.1]} 15. Ra1 {[%clk 0:02:56.3]} 15... Rb8
{[%clk 0:02:33]} 16. Ra7 {[%clk 0:02:53.3]} 16... Nf5 {[%clk 0:02:32.2]} 17. Nd5
{[%clk 0:02:48.3]} 17... Nxd5 {[%clk 0:02:30.9]} 18. cxd5 {[%clk 0:02:49.2]}
18... b6 {[%clk 0:02:07.2]} 19. Qxc7 {[%clk 0:02:46.2]} 19... Qxc7 {[%clk
0:01:44.3]} 20. Rxc7 {[%clk 0:02:47.1]} 20... e4 {[%clk 0:01:42.2]} 21. Bxg7
{[%clk 0:02:33.8]} 21... exf3 {[%clk 0:01:37.8]} 22. Bxf8 {[%clk 0:02:27]} 22...
fxg2 {[%clk 0:01:37.4]} 23. Kxg2 {[%clk 0:02:24.4]} 23... Kxf8 {[%clk
0:01:34.7]} 24. Rfc1 {[%clk 0:02:25]} 24... Ne7 {[%clk 0:01:33.7]} 25. e4 {[%clk
0:02:17.6]} 25... fxe3 {[%clk 0:01:13]} 26. fxe3 {[%clk 0:02:18.5]} 26... Ke8
{[%clk 0:01:13.2]} 27. e4 {[%clk 0:02:17.7]} 27... Bd7 {[%clk 0:01:08.3]} 28.
Ra1 {[%clk 0:02:09.3]} 28... Rc8 {[%clk 0:01:00.7]} 29. Rxc8+ {[%clk 0:02:06.2]}
29... Nxc8 {[%clk 0:00:59.3]} 30. Kf3 {[%clk 0:01:59.8]} 30... Bxb5 {[%clk
0:00:57.4]} 31. Ke3 {[%clk 0:01:59.4]} 31... Bd7 {[%clk 0:00:48.9]} 32. d4
{[%clk 0:01:52.7]} 32... b5 {[%clk 0:00:49]} 33. Ra6 {[%clk 0:01:46.5]} 33...
Kd8 {[%clk 0:00:43.1]} 34. e5 {[%clk 0:01:43.8]} 34... Kc7 {[%clk 0:00:43.1]}
35. Ke4 {[%clk 0:01:25.7]} 35... Kb7 {[%clk 0:00:35.3]} 36. Ra1 {[%clk
0:01:21.6]} 36... Nb6 {[%clk 0:00:32.4]} 37. Rf1 {[%clk 0:01:17.2]} 37... Nc4
{[%clk 0:00:27.6]} 38. Rf7 {[%clk 0:01:14]} 38... Kc8 {[%clk 0:00:27.1]} 39. e6
{[%clk 0:01:11.9]} 39... Be8 {[%clk 0:00:25.6]} 40. Rg7 {[%clk 0:00:59.5]} 40...
b4 {[%clk 0:00:21.7]} 41. Kd3 {[%clk 0:00:55.3]} 41... Nb6 {[%clk 0:00:20.6]}
42. Re7 {[%clk 0:00:49.1]} 42... Bb5+ {[%clk 0:00:20]} 43. Kd2 {[%clk
0:00:47.9]} 43... Nxd5 {[%clk 0:00:18.7]} 44. Rd7 {[%clk 0:00:48.2]} 44... Bxd7
{[%clk 0:00:17.8]} 45. exd7+ {[%clk 0:00:48.2]} 45... Kxd7 {[%clk 0:00:18.7]}
46. Kd3 {[%clk 0:00:48.5]} 46... Kc6 {[%clk 0:00:17.4]} 0-1

[Event "Early-Titled-Tuesday-Blitz-December-26-2023"]
[Site "Chess.com"]
[Date "2023.12.26"]
[Round "4"]
[White "Witik"]
[Black "zubridis"]
[Result "1-0"]
[WhiteElo "2733"]
[BlackElo "2556"]
[TimeControl "180+1"]
[EndTime "8:38:13 PST"]
[Termination "Witik won on time"]

1. d4 {[%clk 0:02:59.7]} 1... e6 {[%clk 0:02:59.1]} 2. c4 {[%clk 0:02:58.3]}
2... b6 {[%clk 0:02:59.5]} 3. f3 {[%clk 0:02:53.3]} 3... d5 {[%clk 0:02:53.3]}
4. Nc3 {[%clk 0:02:52.2]} 4... Nf6 {[%clk 0:02:42.6]} 5. cxd5 {[%clk 0:02:37]}
5... exd5 {[%clk 0:02:42.3]} 6. e4 {[%clk 0:02:22]} 6... dxe4 {[%clk 0:02:23.2]}
7. fxe4 {[%clk 0:02:21.9]} 7... Bb7 {[%clk 0:02:02.6]} 8. Nf3 {[%clk 0:01:35.2]}
8... Be7 {[%clk 0:01:04.6]} 9. Bb5+ {[%clk 0:01:30.3]} 9... c6 {[%clk
0:00:59.7]} 10. Bd3 {[%clk 0:01:30.1]} 10... O-O {[%clk 0:00:57]} 11. O-O {[%clk
0:01:29.2]} 11... c5 {[%clk 0:00:50.3]} 12. d5 {[%clk 0:01:20.5]} 12... Nbd7
{[%clk 0:00:47.5]} 13. e5 {[%clk 0:00:51]} 13... Nxd5 {[%clk 0:00:47]} 14. Nxd5
{[%clk 0:00:51.2]} 14... Bxd5 {[%clk 0:00:47.6]} 15. Bxh7+ {[%clk 0:00:51.9]}
15... Kxh7 {[%clk 0:00:48.1]} 16. Qxd5 {[%clk 0:00:52.8]} 16... Qc7 {[%clk
0:00:15]} 17. Bg5 {[%clk 0:00:40.8]} 17... Rae8 {[%clk 0:00:11.3]} 18. Rae1
{[%clk 0:00:35.1]} 18... Kg8 {[%clk 0:00:10.2]} 19. e6 {[%clk 0:00:34.4]} 19...
Nf6 {[%clk 0:00:08.9]} 20. exf7+ {[%clk 0:00:30.9]} 20... Rxf7 {[%clk
0:00:09.2]} 21. Bxf6 {[%clk 0:00:31.5]} 21... gxf6 {[%clk 0:00:08.1]} 22. Ng5
{[%clk 0:00:29.5]} 22... Rf8 {[%clk 0:00:05.7]} 23. Ne6 {[%clk 0:00:15.8]} 23...
Rd8 {[%clk 0:00:02.3]} 24. Qf5 {[%clk 0:00:14.6]} 24... Qc8 {[%clk 0:00:01.8]}
25. Qg6+ {[%clk 0:00:14.4]} 1-0

[Event "Early-Titled-Tuesday-Blitz-December-26-2023"]
[Site "Chess.com"]
[Date "2023.12.26"]
[Round "4"]
[White "Ramla2020"]
[Black "rikchessmx"]
[Result "1-0"]
[WhiteElo "2462"]
[BlackElo "2210"]
[TimeControl "180+1"]
[EndTime "8:38:14 PST"]
[Termination "Ramla2020 won on time"]

1. c4 {[%clk 0:02:19.9]} 1... Nf6 {[%clk 0:02:40.1]} 2. g3 {[%clk 0:02:19.9]}
2... e5 {[%clk 0:02:37.6]} 3. Bg2 {[%clk 0:02:19.8]} 3... Bc5 {[%clk 0:02:36.4]}
4. Nc3 {[%clk 0:02:18.6]} 4... d6 {[%clk 0:02:36.5]} 5. e3 {[%clk 0:02:18.8]}
5... a6 {[%clk 0:02:36.1]} 6. Nge2 {[%clk 0:02:18.9]} 6... Ba7 {[%clk
0:02:36.1]} 7. d4 {[%clk 0:02:18.3]} 7... Nbd7 {[%clk 0:02:32.8]} 8. O-O {[%clk
0:02:16.6]} 8... O-O {[%clk 0:02:32.3]} 9. h3 {[%clk 0:02:13.8]} 9... c6 {[%clk
0:02:30.4]} 10. b3 {[%clk 0:02:13.6]} 10... Re8 {[%clk 0:02:29.6]} 11. Ba3
{[%clk 0:02:13.4]} 11... Qc7 {[%clk 0:02:29.2]} 12. dxe5 {[%clk 0:02:12]} 12...
dxe5 {[%clk 0:02:28.4]} 13. Bd6 {[%clk 0:02:12.5]} 13... Qa5 {[%clk 0:02:27.1]}
14. b4 {[%clk 0:02:11.2]} 14... Qd8 {[%clk 0:02:15.5]} 15. Qd2 {[%clk
0:02:04.3]} 15... c5 {[%clk 0:02:14.3]} 16. Rad1 {[%clk 0:02:01.7]} 16... cxb4
{[%clk 0:02:08.7]} 17. Bxb4 {[%clk 0:02:00.9]} 17... Qc7 {[%clk 0:02:07.9]} 18.
Nd5 {[%clk 0:01:57.3]} 18... Nxd5 {[%clk 0:01:50.3]} 19. cxd5 {[%clk 0:01:58.2]}
19... Qb6 {[%clk 0:01:28.2]} 20. Rb1 {[%clk 0:01:56.2]} 20... Qh6 {[%clk
0:01:26.3]} 21. e4 {[%clk 0:01:48.2]} 21... Qxd2 {[%clk 0:01:18.3]} 22. Bxd2
{[%clk 0:01:49.1]} 22... Bc5 {[%clk 0:01:14.4]} 23. a4 {[%clk 0:01:45.7]} 23...
b6 {[%clk 0:01:13]} 24. Kh2 {[%clk 0:01:42.9]} 24... a5 {[%clk 0:01:12.7]} 25.
Nc3 {[%clk 0:01:40.3]} 25... Ba6 {[%clk 0:01:08.8]} 26. Nb5 {[%clk 0:01:39.7]}
26... Rac8 {[%clk 0:01:02.4]} 27. f4 {[%clk 0:01:34.4]} 27... exf4 {[%clk
0:01:00.2]} 28. gxf4 {[%clk 0:01:29]} 28... f6 {[%clk 0:00:51.7]} 29. Rfe1
{[%clk 0:01:23]} 29... Bf2 {[%clk 0:00:43.5]} 30. Re2 {[%clk 0:01:17.7]} 30...
Bxb5 {[%clk 0:00:33.5]} 31. Rxb5 {[%clk 0:01:12.3]} 31... Bd4 {[%clk 0:00:30.9]}
32. Be1 {[%clk 0:01:06.1]} 32... Rc4 {[%clk 0:00:24]} 33. h4 {[%clk 0:00:54.9]}
33... Rxa4 {[%clk 0:00:19.2]} 34. Bg3 {[%clk 0:00:51.5]} 34... Bc5 {[%clk
0:00:15.9]} 35. e5 {[%clk 0:00:45.7]} 35... fxe5 {[%clk 0:00:13.7]} 36. fxe5
{[%clk 0:00:46.6]} 36... Rb4 {[%clk 0:00:10.4]} 37. Rxb4 {[%clk 0:00:46.3]}
37... axb4 {[%clk 0:00:10.7]} 38. Bh3 {[%clk 0:00:45.6]} 38... Nf8 {[%clk
0:00:09.2]} 39. e6 {[%clk 0:00:42.4]} 39... b3 {[%clk 0:00:07]} 40. d6 {[%clk
0:00:41.5]} 1-0

[Event "Early-Titled-Tuesday-Blitz-December-26-2023"]
[Site "Chess.com"]
[Date "2023.12.26"]
[Round "4"]
[White "HajiyevKanan"]
[Black "Pendos666"]
[Result "0-1"]
[WhiteElo "2601"]
[BlackElo "2833"]
[TimeControl "180+1"]
[EndTime "8:38:16 PST"]
[Termination "Pendos666 won on time"]

1. d4 {[%clk 0:03:00.9]} 1... Nf6 {[%clk 0:02:59.5]} 2. Nf3 {[%clk 0:03:01.4]}
2... e6 {[%clk 0:02:59]} 3. c4 {[%clk 0:03:01.9]} 3... c5 {[%clk 0:02:58.9]} 4.
e3 {[%clk 0:03:01.7]} 4... cxd4 {[%clk 0:02:56.7]} 5. Nxd4 {[%clk 0:03:02.6]}
5... Nc6 {[%clk 0:02:50.8]} 6. Be2 {[%clk 0:02:59.2]} 6... Be7 {[%clk
0:02:50.3]} 7. O-O {[%clk 0:02:59.2]} 7... O-O {[%clk 0:02:50.2]} 8. b3 {[%clk
0:02:59.8]} 8... Nxd4 {[%clk 0:02:47.8]} 9. Qxd4 {[%clk 0:02:58.8]} 9... d5
{[%clk 0:02:46.7]} 10. Bb2 {[%clk 0:02:57.8]} 10... dxc4 {[%clk 0:02:46.6]} 11.
Bxc4 {[%clk 0:02:57.9]} 11... Qxd4 {[%clk 0:02:43.9]} 12. Bxd4 {[%clk
0:02:58.8]} 12... Bd7 {[%clk 0:02:43.7]} 13. Nc3 {[%clk 0:02:52.9]} 13... Bc6
{[%clk 0:02:39.1]} 14. Rfd1 {[%clk 0:02:22.1]} 14... Rfc8 {[%clk 0:02:34.2]} 15.
a4 {[%clk 0:02:06.9]} 15... a6 {[%clk 0:02:23.3]} 16. a5 {[%clk 0:01:42.4]}
16... Bb4 {[%clk 0:02:08.6]} 17. f3 {[%clk 0:01:24.3]} 17... Kf8 {[%clk
0:02:03.8]} 18. e4 {[%clk 0:01:21.1]} 18... Rd8 {[%clk 0:01:59.2]} 19. Ne2
{[%clk 0:01:06.1]} 19... Nd7 {[%clk 0:01:42.2]} 20. e5 {[%clk 0:01:01.7]} 20...
g5 {[%clk 0:01:30.8]} 21. Kf2 {[%clk 0:01:00.9]} 21... h6 {[%clk 0:01:27.7]} 22.
Ke3 {[%clk 0:00:58.5]} 22... Ke8 {[%clk 0:01:24.6]} 23. g3 {[%clk 0:00:59]}
23... Nf8 {[%clk 0:01:09]} 24. f4 {[%clk 0:00:55.4]} 24... g4 {[%clk 0:01:09]}
25. Bb6 {[%clk 0:00:45.9]} 25... Rxd1 {[%clk 0:01:07.7]} 26. Rxd1 {[%clk
0:00:46.8]} 26... Bf3 {[%clk 0:00:58.9]} 27. Rd3 {[%clk 0:00:45.5]} 27... Nd7
{[%clk 0:00:56.8]} 28. Nd4 {[%clk 0:00:36]} 28... Nxb6 {[%clk 0:00:56.4]} 29.
axb6 {[%clk 0:00:33.3]} 29... Bc5 {[%clk 0:00:56.6]} 30. Kd2 {[%clk 0:00:30]}
30... Be4 {[%clk 0:00:55.7]} 31. Nc2 {[%clk 0:00:09.5]} 31... Bxd3 {[%clk
0:00:54.6]} 32. Bxd3 {[%clk 0:00:10.1]} 32... Bxb6 {[%clk 0:00:54.7]} 33. b4
{[%clk 0:00:09.5]} 33... a5 {[%clk 0:00:53.2]} 34. bxa5 {[%clk 0:00:09]} 34...
Bxa5+ {[%clk 0:00:52.6]} 35. Ke3 {[%clk 0:00:07.7]} 35... Rc8 {[%clk 0:00:51.5]}
36. Na3 {[%clk 0:00:05.7]} 36... Bb6+ {[%clk 0:00:49.2]} 37. Ke4 {[%clk
0:00:05.4]} 37... Bg1 {[%clk 0:00:48.8]} 38. Nb5 {[%clk 0:00:06.3]} 38... Ke7
{[%clk 0:00:47.5]} 39. Nd6 {[%clk 0:00:06]} 39... Rc7 {[%clk 0:00:46.9]} 40. Be2
{[%clk 0:00:03.4]} 40... h5 {[%clk 0:00:46.4]} 41. f5 {[%clk 0:00:01.7]} 41...
Bxh2 {[%clk 0:00:44.4]} 42. f6+ {[%clk 0:00:01.8]} 42... Kf8 {[%clk 0:00:44.5]}
43. Bb5 {[%clk 0:00:02.3]} 43... Bxg3 {[%clk 0:00:43.3]} 0-1